[Event "World Women Teams  Championship"]
[Site "Sitges, Spain"]
[Date "2021.09.28"]
[Round "3.12"]
[White "Javakhishvili, Lela"]
[Black "Lubbe, Melanie"]
[Result "1-0"]
[TimeControl "40+10"]
[WhiteElo "2364"]
[BlackElo "2300"]

1. e4 e5 2. Nf3 Nc6 3. Bb5 a6 4. Ba4 Nf6 5. O-O b5 6. Bb3 Bc5 7. a4 Rb8 8. c3
d6 9. d4 Bb6 10. a5 Ba7 11. h3 O-O 12. Be3 exd4 13. cxd4 Nb4 14. Nc3 Bb7 {[%clk
00:45:10]} 15. Ng5 {[%clk 00:45:17]} 1-0

[ePGN "0.1;DGT LiveChess/2.2.5"]

[Event "World Women Teams Championship"]
[Site "Sitges, Spain"]
[Date "2021.09.28"]
[Round "4.1"]
[White "Goryachkina, Aleksandra"]
[Black "Harika, Dronavalli"]
[Result "1/2-1/2"]
[TimeControl "40+10"]
[WhiteElo "2520"]
[BlackElo "2450"]

1. d4 {[%clk 00:45:14]} {[%emt 00:00:05]} d5 {[%clk 00:45:17]} {[%emt
00:00:03]} 2. c4 {[%clk 00:45:22]} {[%emt 00:00:02]} e6 {[%clk 00:45:25]}
{[%emt 00:00:02]} 3. Nf3 {[%clk 00:45:15]} {[%emt 00:00:18]} Nf6 {[%clk
00:45:33]} {[%emt 00:00:02]} 4. Nc3 {[%clk 00:45:17]} {[%emt 00:00:07]} c6
{[%clk 00:45:41]} {[%emt 00:00:03]} 5. e3 {[%clk 00:45:20]} {[%emt 00:00:06]}
Nbd7 {[%clk 00:45:45]} {[%emt 00:00:06]} 6. Qc2 {[%clk 00:45:26]} {[%emt
00:00:04]} Bd6 {[%clk 00:45:48]} {[%emt 00:00:07]} 7. b3 {[%clk 00:45:33]}
{[%emt 00:00:03]} b6 {[%clk 00:45:25]} {[%emt 00:00:33]} 8. Be2 {[%clk
00:45:22]} {[%emt 00:00:22]} Bb7 {[%clk 00:45:29]} {[%emt 00:00:06]} 9. O-O
{[%clk 00:45:06]} {[%emt 00:00:26]} O-O {[%clk 00:45:31]} {[%emt 00:00:07]} 10.
Bb2 {[%clk 00:44:48]} {[%emt 00:00:28]} Qe7 {[%clk 00:45:37]} {[%emt 00:00:04]}
11. Rfe1 {[%clk 00:44:56]} {[%emt 00:00:03]} Rfe8 {[%clk 00:45:39]} {[%emt
00:00:07]} 12. e4 {[%clk 00:44:54]} {[%emt 00:00:12]} Nxe4 {[%clk 00:45:25]}
{[%emt 00:00:25]} 13. Nxe4 {[%clk 00:45:00]} {[%emt 00:00:04]} dxe4 {[%clk
00:45:33]} {[%emt 00:00:02]} 14. Qxe4 {[%clk 00:45:04]} {[%emt 00:00:05]} Rad8
{[%clk 00:45:32]} {[%emt 00:00:11]} 15. Bd3 {[%clk 00:44:25]} {[%emt 00:00:49]}
Nf8 {[%clk 00:45:36]} {[%emt 00:00:06]} 16. Qg4 {[%clk 00:43:33]} {[%emt
00:01:02]} f6 {[%clk 00:45:41]} {[%emt 00:00:06]} 17. h4 {[%clk 00:42:53]}
{[%emt 00:00:50]} Qf7 {[%clk 00:44:38]} {[%emt 00:01:13]} 18. h5 {[%clk
00:42:21]} {[%emt 00:00:42]} c5 {[%clk 00:43:47]} {[%emt 00:01:01]} 19. d5
{[%clk 00:42:10]} {[%emt 00:00:21]} exd5 {[%clk 00:32:53]} {[%emt 00:11:03]} 20.
cxd5 {[%clk 00:42:17]} {[%emt 00:00:03]} Bc8 {[%clk 00:28:48]} {[%emt
00:04:15]} 21. Qh4 {[%clk 00:41:52]} {[%emt 00:00:35]} h6 {[%clk 00:28:25]}
{[%emt 00:00:34]} 22. Bc4 {[%clk 00:37:52]} {[%emt 00:04:10]} Kh8 {[%clk
00:26:57]} {[%emt 00:01:37]} 23. Nh2 {[%clk 00:33:30]} {[%emt 00:04:32]} Bd7
{[%clk 00:25:22]} {[%emt 00:01:45]} 24. Ng4 {[%emt 00:03:49]} Nh7 {[%clk
00:25:00]} {[%emt 00:00:21]} 25. a4 {[%clk 00:25:40]} {[%emt 00:04:32]} Rxe1+
{[%clk 00:24:34]} {[%emt 00:00:36]} 26. Rxe1 {[%clk 00:25:48]} {[%emt
00:00:02]} Re8 {[%clk 00:24:35]} {[%emt 00:00:09]} 27. Ne3 {[%clk 00:22:14]}
{[%emt 00:03:44]} f5 {[%clk 00:17:48]} {[%emt 00:06:57]} 28. f3 {[%clk
00:20:32]} {[%emt 00:01:52]} Be7 {[%clk 00:13:08]} {[%emt 00:04:50]} 29. Qh2
{[%clk 00:19:17]} {[%emt 00:01:26]} Bf6 {[%clk 00:13:16]} {[%emt 00:00:01]} 30.
Bxf6 {[%clk 00:16:27]} {[%emt 00:03:00]} Nxf6 {[%clk 00:12:54]} {[%emt
00:00:31]} 31. d6 {[%clk 00:12:59]} {[%emt 00:03:39]} Qf8 {[%clk 00:13:00]}
{[%emt 00:00:05]} 32. Kf1 {[%clk 00:12:37]} {[%emt 00:00:31]} Bc8 {[%clk
00:10:47]} {[%emt 00:02:23]} 33. Bb5 {[%clk 00:11:57]} {[%emt 00:00:50]} Bd7
{[%clk 00:07:06]} {[%emt 00:03:51]} 34. Bxd7 {[%clk 00:10:32]} {[%emt
00:01:36]} Nxd7 {[%clk 00:07:14]} 35. Qf4 {[%clk 00:10:11]} {[%emt 00:00:31]}
Re5 {[%clk 00:07:16]} {[%emt 00:00:08]} 36. Nc4 {[%clk 00:09:00]} {[%emt
00:01:20]} Rxe1+ {[%clk 00:07:14]} {[%emt 00:00:13]} 37. Kxe1 {[%clk 00:09:09]}
{[%emt 00:00:01]} Qf7 {[%clk 00:06:19]} {[%emt 00:01:05]} 38. Qe3 {[%clk
00:05:52]} {[%emt 00:03:27]} Kg8 {[%clk 00:06:28]} {[%emt 00:00:01]} 39. Kf2
{[%clk 00:03:23]} {[%emt 00:02:39]} Qxh5 {[%clk 00:05:16]} {[%emt 00:01:22]} 40.
Qe7 {[%clk 00:03:30]} {[%emt 00:00:04]} Qf7 {[%clk 00:05:23]} {[%emt 00:00:02]}
41. Qd8+ {[%clk 00:03:35]} {[%emt 00:00:05]} Nf8 {[%clk 00:02:13]} {[%emt
00:03:20]} 42. Qc7 {[%clk 00:03:17]} {[%emt 00:00:28]} Qd5 {[%clk 00:02:00]}
{[%emt 00:00:22]} 43. Qe7 {[%clk 00:02:59]} {[%emt 00:00:29]} Qd4+ {[%clk
00:01:40]} {[%emt 00:00:30]} 44. Ke2 {[%clk 00:02:16]} {[%emt 00:00:53]} Qg1
{[%clk 00:00:50]} {[%emt 00:01:00]} 45. Ne5 {[%clk 00:01:24]} {[%emt 00:01:02]}
Qxg2+ {[%clk 00:00:58]} {[%emt 00:00:03]} 46. Kd1 {[%clk 00:00:47]} {[%emt
00:00:46]} Qf1+ {[%clk 00:00:42]} {[%emt 00:00:27]} 47. Kc2 {[%clk 00:00:39]}
{[%emt 00:00:18]} Qe2+ {[%clk 00:00:50]} {[%emt 00:00:02]} 48. Kc1 {[%clk
00:00:32]} {[%emt 00:00:16]} Qe1+ {[%clk 00:00:58]} {[%emt 00:00:02]} 49. Kc2
{[%clk 00:00:41]} {[%emt 00:00:01]} Qe2+ {[%clk 00:01:07]} 50. Kc1 {[%clk
00:00:50]} {[%emt 00:00:01]} Qe1+ {[%clk 00:01:16]} {[%emt 00:00:01]} 51. Kc2
{[%clk 00:00:59]} 1/2-1/2

[Event "World Women Teams Championship"]
[Site "Sitges, Spain"]
[Date "2021.09.28"]
[Round "4.2"]
[White "Vaishali, R"]
[Black "Kosteniuk, Alexandra"]
[Result "0-1"]
[TimeControl "40+10"]
[WhiteElo "2149"]
[BlackElo "2517"]

1. e4 {[%clk 00:44:57]} {[%emt 00:00:22]} e5 {[%clk 00:45:16]} {[%emt
00:00:04]} 2. Nf3 {[%clk 00:45:03]} {[%emt 00:00:04]} Nc6 {[%clk 00:45:23]}
{[%emt 00:00:04]} 3. Bb5 {[%clk 00:45:06]} {[%emt 00:00:06]} a6 {[%clk
00:45:29]} {[%emt 00:00:04]} 4. Ba4 {[%clk 00:45:13]} {[%emt 00:00:03]} Nf6
{[%clk 00:45:35]} {[%emt 00:00:04]} 5. O-O {[%clk 00:45:19]} {[%emt 00:00:04]}
b5 {[%clk 00:45:41]} {[%emt 00:00:04]} 6. Bb3 {[%clk 00:45:26]} {[%emt
00:00:03]} Bc5 {[%clk 00:45:48]} {[%emt 00:00:03]} 7. c3 {[%clk 00:45:00]}
{[%emt 00:00:36]} d6 {[%clk 00:45:54]} {[%emt 00:00:05]} 8. d4 {[%clk
00:44:44]} {[%emt 00:00:25]} Bb6 {[%clk 00:46:01]} {[%emt 00:00:02]} 9. Be3
{[%clk 00:44:28]} {[%emt 00:00:27]} O-O {[%clk 00:45:39]} {[%emt 00:00:32]} 10.
Nbd2 {[%clk 00:44:26]} {[%emt 00:00:12]} h6 {[%clk 00:44:41]} {[%emt 00:01:09]}
11. h3 {[%clk 00:44:19]} {[%emt 00:00:17]} exd4 {[%clk 00:44:18]} {[%emt
00:00:33]} 12. cxd4 {[%clk 00:44:12]} {[%emt 00:00:17]} Ne7 {[%clk 00:44:20]}
{[%emt 00:00:08]} 13. Re1 {[%clk 00:34:57]} {[%emt 00:09:25]} Ng6 {[%clk
00:42:32]} {[%emt 00:01:57]} 14. e5 {[%clk 00:24:32]} {[%emt 00:10:35]} dxe5
{[%clk 00:40:26]} {[%emt 00:02:16]} 15. dxe5 {[%clk 00:24:34]} {[%emt
00:00:08]} Nd5 {[%clk 00:40:09]} {[%emt 00:00:28]} 16. Bxb6 {[%clk 00:24:27]}
{[%emt 00:00:16]} Nxb6 {[%clk 00:38:20]} {[%emt 00:01:59]} 17. Qc2 {[%clk
00:23:56]} {[%emt 00:00:40]} Ne7 {[%clk 00:36:23]} {[%emt 00:02:07]} 18. Rad1
{[%clk 00:23:00]} {[%emt 00:01:07]} Be6 {[%clk 00:32:18]} {[%emt 00:04:15]} 19.
Ne4 {[%clk 00:22:12]} {[%emt 00:00:58]} Bxb3 {[%clk 00:29:32]} {[%emt
00:02:56]} 20. Qxb3 {[%clk 00:21:35]} {[%emt 00:00:47]} Qc8 {[%clk 00:29:09]}
{[%emt 00:00:33]} 21. Nc5 {[%clk 00:19:50]} {[%emt 00:01:55]} Qf5 {[%clk
00:26:26]} {[%emt 00:02:53]} 22. Nd4 {[%clk 00:16:34]} {[%emt 00:03:26]} Qg6
{[%clk 00:25:57]} {[%emt 00:00:39]} 23. e6 {[%clk 00:13:19]} {[%emt 00:03:25]}
Rfe8 {[%clk 00:25:32]} {[%emt 00:00:36]} 24. Rd3 {[%clk 00:07:34]} {[%emt
00:05:54]} f6 {[%clk 00:20:50]} {[%emt 00:04:53]} 25. Nd7 {[%clk 00:05:58]}
{[%emt 00:01:45]} Qh5 {[%clk 00:18:00]} {[%emt 00:03:00]} 26. Qc2 {[%clk
00:05:19]} {[%emt 00:00:49]} Nbd5 {[%clk 00:17:14]} {[%emt 00:00:56]} 27. Rg3
{[%clk 00:05:06]} {[%emt 00:00:22]} Kh8 {[%clk 00:17:21]} {[%emt 00:00:04]} 28.
Qc5 {[%clk 00:04:43]} {[%emt 00:00:33]} Rac8 {[%clk 00:15:49]} {[%emt
00:01:42]} 29. Re4 {[%clk 00:03:33]} {[%emt 00:01:20]} Qd1+ {[%clk 00:13:44]}
{[%emt 00:02:15]} 30. Kh2 {[%clk 00:03:42]} {[%emt 00:00:01]} Qd2 {[%clk
00:13:37]} {[%emt 00:00:17]} 31. Nc6 {[%clk 00:01:59]} {[%emt 00:01:53]} Nxc6
{[%clk 00:12:44]} {[%emt 00:01:03]} 32. Qxc6 {[%clk 00:02:07]} {[%emt
00:00:02]} Ne7 {[%clk 00:12:52]} {[%emt 00:00:02]} 33. Qc5 {[%clk 00:01:29]}
{[%emt 00:00:48]} Qd5 {[%clk 00:11:44]} {[%emt 00:01:18]} 34. Qxd5 {[%clk
00:00:34]} {[%emt 00:01:05]} Nxd5 {[%clk 00:11:49]} {[%emt 00:00:05]} 35. Ra3
{[%clk 00:00:38]} {[%emt 00:00:06]} Ra8 {[%clk 00:11:22]} {[%emt 00:00:37]} 36.
b4 {[%clk 00:00:38]} {[%emt 00:00:10]} f5 {[%clk 00:08:11]} {[%emt 00:03:21]}
37. Rd4 {[%clk 00:00:45]} {[%emt 00:00:04]} c6 {[%clk 00:07:44]} {[%emt
00:00:37]} 38. Nc5 {[%clk 00:00:46]} {[%emt 00:00:09]} g5 {[%clk 00:07:32]}
{[%emt 00:00:22]} 39. Rf3 {[%clk 00:00:27]} {[%emt 00:00:29]} f4 {[%clk
00:07:22]} {[%emt 00:00:20]} 40. g3 {[%clk 00:00:33]} {[%emt 00:00:04]} a5
{[%emt 00:00:20]} 41. a3 {[%clk 00:00:28]} {[%emt 00:00:14]} axb4 {[%clk
00:07:16]} {[%emt 00:00:07]} 42. axb4 {[%clk 00:00:37]} {[%emt 00:00:02]} Ra2
{[%clk 00:06:59]} {[%emt 00:00:25]} 43. gxf4 {[%clk 00:00:35]} {[%emt
00:00:13]} gxf4 {[%clk 00:06:51]} {[%emt 00:00:18]} 44. Re4 {[%clk 00:00:21]}
{[%emt 00:00:24]} Rc2 {[%clk 00:06:03]} {[%emt 00:00:58]} 45. Nb7 {[%clk
00:00:21]} {[%emt 00:00:10]} Rg8 {[%clk 00:03:05]} {[%emt 00:03:08]} 46. e7
{[%clk 00:00:14]} {[%emt 00:00:17]} Re8 {[%clk 00:03:03]} {[%emt 00:00:12]} 47.
Nd6 {[%clk 00:00:15]} {[%emt 00:00:09]} Rxe7 {[%clk 00:03:10]} {[%emt
00:00:03]} 48. Rxe7 {[%clk 00:00:22]} {[%emt 00:00:03]} Nxe7 {[%clk 00:03:19]}
49. Rxf4 {[%clk 00:00:31]} {[%emt 00:00:02]} Nd5 {[%clk 00:03:17]} {[%emt
00:00:11]} 50. Rf7 {[%clk 00:00:19]} {[%emt 00:00:23]} Kg8 {[%clk 00:03:12]}
{[%emt 00:00:14]} 51. Kg3 {[%clk 00:00:21]} {[%emt 00:00:09]} Nxb4 {[%clk
00:03:16]} {[%emt 00:00:06]} 52. Rb7 {[%clk 00:00:13]} {[%emt 00:00:17]} Nd5
{[%clk 00:02:50]} {[%emt 00:00:36]} 53. Nf5 {[%clk 00:00:17]} {[%emt 00:00:06]}
h5 {[%clk 00:02:48]} {[%emt 00:00:13]} 54. Nd4 {[%clk 00:00:13]} {[%emt
00:00:13]} Rc4 {[%clk 00:02:47]} {[%emt 00:00:11]} 55. Ne6 {[%clk 00:00:14]}
{[%emt 00:00:10]} h4+ {[%clk 00:02:46]} {[%emt 00:00:11]} 56. Kf3 {[%clk
00:00:23]} {[%emt 00:00:01]} b4 {[%clk 00:02:50]} {[%emt 00:00:07]} 57. Ke2
{[%clk 00:00:16]} {[%emt 00:00:17]} Re4+ {[%clk 00:02:58]} {[%emt 00:00:01]}
0-1

[Event "World Women Teams Championship"]
[Site "Sitges, Spain"]
[Date "2021.09.28"]
[Round "4.3"]
[White "Lagno, Kateryna"]
[Black "Tania, Sachdev"]
[Result "1-0"]
[TimeControl "40+10"]
[WhiteElo "2521"]
[BlackElo "2339"]

1. e4 {[%clk 00:45:18]} e5 {[%clk 00:45:18]} {[%emt 00:00:02]} 2. Nf3 {[%clk
00:45:25]} {[%emt 00:00:03]} Nc6 {[%clk 00:45:26]} {[%emt 00:00:02]} 3. Bb5
{[%clk 00:45:33]} {[%emt 00:00:03]} a6 {[%clk 00:45:34]} {[%emt 00:00:02]} 4.
Ba4 {[%clk 00:45:41]} {[%emt 00:00:01]} Nf6 {[%clk 00:45:39]} {[%emt 00:00:06]}
5. O-O {[%clk 00:45:48]} {[%emt 00:00:03]} b5 {[%clk 00:45:46]} {[%emt
00:00:03]} 6. Bb3 {[%clk 00:45:56]} {[%emt 00:00:02]} Bb7 {[%clk 00:45:51]}
{[%emt 00:00:05]} 7. Re1 {[%clk 00:45:44]} {[%emt 00:00:21]} Bc5 {[%clk
00:45:38]} {[%emt 00:00:24]} 8. c3 {[%clk 00:45:49]} {[%emt 00:00:05]} d6
{[%clk 00:45:20]} {[%emt 00:00:28]} 9. d4 {[%clk 00:45:56]} {[%emt 00:00:03]}
Bb6 {[%clk 00:45:28]} {[%emt 00:00:02]} 10. a4 {[%clk 00:46:04]} {[%emt
00:00:02]} h6 {[%clk 00:44:55]} {[%emt 00:00:43]} 11. Be3 {[%clk 00:46:05]}
{[%emt 00:00:08]} Ng4 {[%clk 00:39:38]} {[%emt 00:05:26]} 12. Bd5 {[%clk
00:46:04]} {[%emt 00:00:11]} O-O {[%emt 00:03:34]} 13. Na3 {[%clk 00:45:17]}
{[%emt 00:00:53]} Qd7 {[%clk 00:28:10]} {[%emt 00:08:18]} 14. Qe2 {[%clk
00:42:17]} {[%emt 00:03:11]} bxa4 {[%clk 00:25:19]} {[%emt 00:03:02]} 15. Nc4
{[%clk 00:39:35]} {[%emt 00:02:51]} Na5 {[%clk 00:22:52]} {[%emt 00:02:38]} 16.
Nxa5 {[%clk 00:24:27]} {[%emt 00:15:17]} Bxd5 {[%clk 00:22:54]} {[%emt
00:00:07]} 17. exd5 {[%clk 00:24:35]} {[%emt 00:00:03]} Bxa5 {[%clk 00:22:33]}
{[%emt 00:00:32]} 18. dxe5 {[%emt 00:02:40]} Nxe5 {[%clk 00:19:53]} {[%emt
00:02:49]} 19. Nxe5 {[%clk 00:22:11]} {[%emt 00:00:05]} dxe5 {[%clk 00:20:01]}
{[%emt 00:00:02]} 20. Red1 {[%emt 00:08:36]} Bb6 {[%clk 00:14:13]} {[%emt
00:00:27]} 21. Bxb6 {[%clk 00:18:32]} {[%emt 00:00:55]} cxb6 {[%clk 00:14:22]}
22. Qxe5 {[%clk 00:18:40]} {[%emt 00:00:02]} Rfe8 {[%clk 00:13:52]} {[%emt
00:00:40]} 23. Qd4 {[%clk 00:18:28]} {[%emt 00:00:22]} b5 {[%clk 00:12:52]}
{[%emt 00:01:09]} 24. d6 {[%clk 00:13:55]} {[%emt 00:04:44]} Re6 {[%clk
00:10:59]} {[%emt 00:02:03]} 25. Rd2 {[%clk 00:12:50]} {[%emt 00:01:15]} Rc8
{[%clk 00:10:02]} {[%emt 00:01:06]} 26. Rad1 {[%clk 00:12:20]} {[%emt
00:00:39]} Rc4 {[%clk 00:09:41]} {[%emt 00:00:32]} 27. Qb6 {[%clk 00:11:38]}
{[%emt 00:00:53]} a3 {[%clk 00:03:35]} {[%emt 00:06:15]} 28. bxa3 {[%clk
00:11:39]} {[%emt 00:00:09]} Rxc3 {[%clk 00:03:38]} {[%emt 00:00:08]} 29. Qxa6
{[%clk 00:11:44]} {[%emt 00:00:05]} Kh7 {[%clk 00:03:29]} {[%emt 00:00:19]} 30.
g3 {[%clk 00:10:21]} {[%emt 00:01:32]} Re4 {[%clk 00:03:10]} {[%emt 00:00:29]}
31. Rd5 {[%clk 00:09:12]} {[%emt 00:01:19]} Rb3 {[%clk 00:01:54]} {[%emt
00:01:27]} 32. Qb6 {[%clk 00:07:45]} {[%emt 00:01:38]} Rc4 {[%clk 00:01:42]}
{[%emt 00:00:22]} 33. Re5 {[%clk 00:06:57]} {[%emt 00:00:58]} Qg4 {[%clk
00:00:41]} {[%emt 00:01:10]} 34. Ree1 {[%clk 00:06:58]} {[%emt 00:00:09]} Qd7
{[%clk 00:00:31]} {[%emt 00:00:20]} 35. Re7 {[%clk 00:05:54]} {[%emt 00:01:14]}
Qg4 {[%clk 00:00:25]} {[%emt 00:00:16]} 36. Ree1 {[%clk 00:05:17]} {[%emt
00:00:47]} Qd7 {[%clk 00:00:34]} {[%emt 00:00:02]} 37. Re3 {[%clk 00:05:13]}
{[%emt 00:00:14]} Rb2 {[%clk 00:00:34]} {[%emt 00:00:10]} 38. Rf3 {[%clk
00:04:51]} {[%emt 00:00:31]} Rc6 {[%clk 00:00:22]} {[%emt 00:00:23]} 39. Qd4
{[%clk 00:04:50]} {[%emt 00:00:10]} Rcc2 {[%clk 00:00:30]} {[%emt 00:00:02]} 40.
Qe4+ {[%clk 00:04:41]} {[%emt 00:00:20]} Kg8 {[%clk 00:00:17]} {[%emt
00:00:23]} 41. Qe7 {[%clk 00:04:46]} {[%emt 00:00:05]} 1-0

[Event "World Women Teams Championship"]
[Site "Sitges, Spain"]
[Date "2021.09.28"]
[Round "4.4"]
[White "Gomes, Mary Ann"]
[Black "Shuvalova, Polina"]
[Result "1/2-1/2"]
[TimeControl "40+10"]
[WhiteElo "2305"]
[BlackElo "2383"]

1. Nf3 {[%clk 00:45:10]} {[%emt 00:00:09]} d5 {[%clk 00:45:07]} {[%emt
00:00:14]} 2. g3 {[%clk 00:45:12]} {[%emt 00:00:07]} Nf6 {[%clk 00:45:10]}
{[%emt 00:00:08]} 3. Bg2 {[%clk 00:45:17]} {[%emt 00:00:05]} e6 {[%clk
00:45:17]} {[%emt 00:00:04]} 4. b3 {[%clk 00:45:06]} {[%emt 00:00:20]} Be7
{[%clk 00:44:56]} {[%emt 00:00:31]} 5. Bb2 {[%clk 00:45:11]} {[%emt 00:00:06]}
O-O {[%clk 00:45:02]} {[%emt 00:00:04]} 6. O-O {[%clk 00:45:02]} {[%emt
00:00:19]} b6 {[%clk 00:45:09]} {[%emt 00:00:03]} 7. c4 {[%clk 00:44:37]}
{[%emt 00:00:34]} Bb7 {[%clk 00:45:14]} {[%emt 00:00:05]} 8. e3 {[%clk
00:44:24]} {[%emt 00:00:24]} c5 {[%clk 00:45:13]} {[%emt 00:00:11]} 9. Ne5
{[%clk 00:43:55]} {[%emt 00:00:38]} Nc6 {[%clk 00:42:35]} {[%emt 00:02:48]} 10.
d4 {[%clk 00:42:25]} {[%emt 00:01:40]} cxd4 {[%clk 00:41:32]} {[%emt 00:01:13]}
11. exd4 {[%clk 00:41:44]} {[%emt 00:00:50]} Rc8 {[%clk 00:41:28]} {[%emt
00:00:13]} 12. Nc3 {[%clk 00:39:03]} {[%emt 00:02:52]} dxc4 {[%clk 00:39:50]}
{[%emt 00:01:48]} 13. bxc4 {[%clk 00:39:10]} {[%emt 00:00:04]} Na5 {[%clk
00:38:39]} {[%emt 00:01:21]} 14. Bxb7 {[%clk 00:39:12]} {[%emt 00:00:07]} Nxb7
{[%clk 00:38:47]} {[%emt 00:00:03]} 15. Nb5 {[%clk 00:39:13]} {[%emt 00:00:08]}
a6 {[%clk 00:35:27]} {[%emt 00:03:31]} 16. Na7 {[%clk 00:39:15]} {[%emt
00:00:07]} Rc7 {[%clk 00:35:04]} {[%emt 00:00:33]} 17. Nac6 {[%clk 00:39:14]}
{[%emt 00:00:11]} Qd6 {[%clk 00:34:28]} {[%emt 00:00:46]} 18. Qa4 {[%clk
00:31:12]} {[%emt 00:08:12]} Ra8 {[%clk 00:34:26]} {[%emt 00:00:13]} 19. Rfd1
{[%clk 00:28:35]} {[%emt 00:02:47]} Bf8 {[%clk 00:32:25]} {[%emt 00:02:12]} 20.
Rac1 {[%clk 00:20:51]} {[%emt 00:07:54]} Rcc8 {[%clk 00:29:32]} {[%emt
00:03:02]} 21. d5 {[%clk 00:15:34]} {[%emt 00:05:27]} b5 {[%clk 00:27:29]}
{[%emt 00:02:13]} 22. cxb5 {[%clk 00:14:22]} {[%emt 00:01:22]} Nc5 {[%clk
00:24:08]} {[%emt 00:03:30]} 23. Qd4 {[%clk 00:10:28]} {[%emt 00:04:05]} exd5
{[%clk 00:14:36]} {[%emt 00:09:43]} 24. Ba3 {[%clk 00:05:48]} {[%emt 00:04:50]}
Nfe4 {[%clk 00:14:32]} {[%emt 00:00:12]} 25. b6 {[%clk 00:03:37]} {[%emt
00:02:22]} Rxc6 {[%clk 00:13:40]} {[%emt 00:01:02]} 26. Nxc6 {[%clk 00:03:45]}
{[%emt 00:00:02]} Qxc6 {[%clk 00:13:44]} {[%emt 00:00:06]} 27. Qxd5 {[%clk
00:03:48]} {[%emt 00:00:06]} Qxd5 {[%clk 00:08:02]} {[%emt 00:05:53]} 28. Rxd5
{[%clk 00:03:55]} {[%emt 00:00:02]} Nb7 {[%clk 00:07:39]} {[%emt 00:00:33]} 29.
Bxf8 {[%clk 00:03:24]} {[%emt 00:00:41]} Kxf8 {[%clk 00:07:47]} {[%emt
00:00:02]} 30. a4 {[%clk 00:01:20]} {[%emt 00:02:14]} Ned6 {[%clk 00:05:08]}
{[%emt 00:02:50]} 31. Rc7 {[%clk 00:00:51]} {[%emt 00:00:38]} Re8 {[%clk
00:03:50]} {[%emt 00:01:28]} 32. a5 {[%clk 00:00:45]} {[%emt 00:00:17]} Re1+
{[%clk 00:03:39]} {[%emt 00:00:21]} 33. Kg2 {[%clk 00:00:53]} {[%emt 00:00:01]}
Ke8 {[%clk 00:02:33]} {[%emt 00:01:16]} 34. f4 {[%clk 00:00:57]} {[%emt
00:00:07]} Ra1 {[%clk 00:02:04]} {[%emt 00:00:38]} 35. Re5+ {[%clk 00:00:41]}
{[%emt 00:00:26]} Kf8 {[%clk 00:01:53]} {[%emt 00:00:21]} 36. Ree7 {[%clk
00:00:28]} {[%emt 00:00:24]} Rxa5 {[%clk 00:01:44]} {[%emt 00:00:19]} 37. Rxb7
{[%clk 00:00:27]} {[%emt 00:00:12]} Nxb7 {[%clk 00:01:49]} {[%emt 00:00:04]} 38.
Rxb7 {[%clk 00:00:35]} {[%emt 00:00:02]} Rb5 {[%clk 00:01:51]} {[%emt
00:00:07]} 39. Kf3 {[%clk 00:00:20]} {[%emt 00:00:26]} a5 {[%clk 00:01:53]}
{[%emt 00:00:07]} 40. Ke3 {[%clk 00:00:21]} {[%emt 00:00:10]} a4 {[%clk
00:01:56]} {[%emt 00:00:07]} 41. Kd3 {[%clk 00:00:18]} {[%emt 00:00:13]} a3
{[%clk 00:01:50]} {[%emt 00:00:16]} 42. Ra7 {[%clk 00:00:13]} {[%emt 00:00:15]}
Rxb6 {[%clk 00:01:36]} {[%emt 00:00:24]} 43. Rxa3 {[%clk 00:00:22]} {[%emt
00:00:01]} Rb2 {[%clk 00:01:44]} {[%emt 00:00:02]} 44. h4 {[%clk 00:00:30]}
{[%emt 00:00:01]} h5 {[%clk 00:01:46]} {[%emt 00:00:08]} 45. Ke4 {[%emt
00:00:09]} Ke7 1/2-1/2